bitfinex/quotes_ETHUSD_20240921
["timestamp","ask_amount","ask_price","bid_price","bid_amount"]
[1726895007600,0.07858059,2540.6,2540.4,3.0]
[1726895007963,2.3071,2540.7,2540.4,3.0]
[1726895008406,0.07858059,2540.6,2540.4,3.0]
[1726895008862,2.3071,2540.7,2540.4,3.0]
[1726895009413,0.07858059,2540.6,2540.4,3.0]
[1726895009760,2.3071,2540.7,2540.4,3.0]
[1726895009998,0.07858059,2540.6,2540.4,3.0]
[1726895010534,2.3071,2540.9,2540.4,3.0]
[1726895010889,0.07858059,2540.8,2540.4,3.0]
[1726895012240,0.07858059,2540.8,2540.2,5.0339]
[1726895012385,0.07858059,2540.8,2540.2,2.0339]
[1726895012589,2.3071,2540.9,2540.2,2.0339]
[1726895013332,2.3071,2540.9,2540.2,4.69733083]
[1726895013520,2.3071,2540.9,2540.3,3.0]
[1726895013690,0.07858059,2540.8,2540.3,3.0]
[1726895014099,2.3071,2540.9,2540.3,3.0]
[1726895014920,2.53781,2540.9,2540.3,3.0]
[1726895015121,2.53781,2540.9,2540.2,3.19508757]
[1726895016526,2.53781,2540.9,2540.2,3.0]
[1726895019974,2.53781,2540.9,2540.2,1.74058537]
[1726895020453,2.2758,2540.7,2540.2,4.74058537]
[1726895020634,2.2758,2540.7,2540.2,1.74058537]
[1726895022680,2.526451,2540.7,2540.0,2.47014293]
[1726895022881,2.2758,2540.5,2539.9,1.74058537]
[1726895023257,2.2758,2540.3,2539.9,1.74058537]
[1726895023765,2.2758,2540.3,2540.1,1.74058537]
[1726895023970,0.07857681,2540.2,2540.1,1.74058537]
[1726895024158,2.2758,2540.3,2540.1,1.74058537]
[1726895024339,0.07857681,2540.2,2540.1,1.74058537]
[1726895024544,4.99815916,2541.0,2540.1,4.74058537]
[1726895024545,2.2758,2540.5,2540.1,4.74058537]
[1726895024845,0.07857681,2540.4,2540.3,1.74058537]
[1726895025290,2.2758,2540.5,2540.3,1.74058537]
[1726895025565,0.07857681,2540.4,2540.3,1.74058537]
[1726895025746,2.2758,2540.5,2540.3,1.74058537]
[1726895026078,0.07857681,2540.4,2540.1,6.77147794]
[1726895026392,2.2758,2540.5,2540.1,6.77147794]
[1726895026749,0.07857681,2540.4,2540.1,6.77147794]
[1726895026946,2.2758,2540.5,2540.1,6.77147794]
[1726895027150,0.07857681,2540.4,2540.1,6.77147794]
[1726895027377,2.2758,2540.5,2540.1,6.77147794]
[1726895027880,0.07857681,2540.4,2540.1,6.77147794]
[1726895028260,2.2758,2540.5,2540.1,6.77147794]
[1726895028592,0.07842708,2540.4,2540.1,6.77147794]
[1726895028957,2.2758,2540.5,2540.1,6.77147794]
[1726895029146,0.07842708,2540.4,2540.1,6.77147794]
[1726895029347,2.2758,2540.3,2539.9,5.47024203]
[1726895029582,2.2758,2540.3,2539.9,3.0]
[1726895029788,2.2758,2540.3,2539.8,3.19233913]
[1726895031251,2.37422559,2540.2,2539.6,2.47024203]
[1726895031587,0.07842708,2540.1,2539.2,6.24423433]
[1726895031789,0.07842708,2540.1,2539.2,3.77147794]
[1726895031790,2.2758,2539.9,2539.2,3.77147794]
[1726895032094,2.52106661,2539.9,2539.2,3.77147794]
[1726895032247,2.35402742,2539.8,2539.2,3.77147794]
[1726895032448,2.35402742,2539.8,2539.2,6.24423433]
[1726895032675,2.2758,2539.8,2539.5,3.0]
[1726895032878,2.2758,2539.8,2539.6,3.0]
[1726895033548,0.07810835,2539.7,2539.6,3.0]
[1726895034153,2.2758,2539.8,2539.6,3.0]
[1726895034594,0.07810835,2539.7,2539.6,3.0]
[1726895035085,2.2758,2539.8,2539.6,3.0]
[1726895035287,0.07810835,2539.7,2539.6,3.0]
[1726895035648,2.2758,2539.8,2539.6,3.0]
[1726895035851,0.07810835,2539.7,2539.6,3.0]
[1726895036079,2.2758,2539.8,2539.6,3.0]
[1726895036278,0.07810835,2539.7,2539.6,3.0]
[1726895036665,2.2758,2539.8,2539.6,3.0]
[1726895036882,0.07810835,2539.7,2539.6,3.0]
[1726895037099,2.2758,2539.8,2539.6,3.0]
[1726895037308,0.07810835,2539.7,2539.6,3.0]
[1726895037671,2.2758,2539.8,2539.6,3.0]
[1726895038004,0.07810835,2539.7,2539.6,3.0]
[1726895038204,2.2758,2539.8,2539.6,3.0]
[1726895038504,0.07810835,2539.7,2539.6,3.0]
[1726895038878,2.4623,2540.2,2539.6,3.0]
[1726895039080,0.07810835,2539.7,2539.6,3.0]
[1726895039497,2.4623,2540.2,2539.6,3.0]
[1726895039682,0.07810835,2539.7,2539.6,3.0]
[1726895039886,2.4623,2540.2,2539.6,3.0]
[1726895040089,0.07786643,2539.7,2539.6,3.0]
[1726895040289,2.4623,2540.2,2539.6,3.0]
[1726895040473,0.077901,2539.7,2539.6,3.0]
[1726895040921,2.4623,2540.2,2539.6,4.06820276]
[1726895041109,2.4623,2540.2,2540.0,3.0]
[1726895043971,2.4623,2540.2,2538.2,0.10569818]
[1726895043972,5.4623,2539.8,2538.2,0.10569818]
[1726895044174,2.4623,2539.4,2538.2,0.0374035]
[1726895044380,2.4623,2539.2,2538.2,0.0374035]
[1726895044620,2.56077998,2539.1,2538.2,0.0374035]
[1726895045415,2.56077998,2539.1,2538.6,3.77147794]
[1726895045416,0.07792405,2539.0,2538.6,3.77147794]
[1726895046129,0.07792405,2539.0,2538.7,3.0]
[1726895046335,0.07792405,2539.0,2538.6,1.74284132]
[1726895047896,0.07792405,2539.0,2538.8,3.77507793]
[1726895048079,0.07792405,2539.0,2538.9,3.04527156]
[1726895048419,2.4623,2539.4,2538.9,3.04527156]
[1726895048596,0.07755135,2539.0,2538.9,3.04527156]
[1726895049331,2.4623,2539.4,2538.9,3.04527156]
[1726895049818,2.4623,2539.4,2539.0,3.77507793]
[1726895050024,2.4623,2539.4,2539.1,3.0]
[1726895050378,2.4623,2539.4,2538.9,3.0]
[1726895052742,0.07755135,2539.3,2538.9,3.0]
[1726895053055,2.4623,2539.4,2538.9,3.0]
[1726895053347,0.07755135,2539.2,2538.9,3.0]
[1726895053551,0.07734388,2539.3,2538.9,3.0]
[1726895053749,2.4623,2539.4,2538.9,3.0]
[1726895054116,0.07734388,2539.3,2538.9,3.0]
[1726895054436,2.4623,2539.4,2538.9,3.0]
[1726895054655,0.07734388,2539.2,2538.9,3.0]
[1726895054946,2.4623,2539.4,2538.9,3.0]
[1726895055445,0.07734388,2539.3,2538.9,3.0]
[1726895055649,2.4623,2539.4,2538.9,3.0]
[1726895056247,0.07734388,2539.3,2538.9,3.0]
[1726895056554,2.4623,2539.4,2538.9,3.0]
[1726895057053,0.07734388,2539.3,2538.9,3.0]
[1726895057354,2.4623,2539.4,2538.9,3.0]
[1726895057515,2.70853,2539.4,2538.9,3.0]
[1726895057715,0.07743612,2539.3,2538.9,3.0]
[1726895058257,0.07743612,2539.3,2539.1,3.0]
[1726895058431,2.2981,2539.7,2539.1,3.0]
[1726895058625,0.07743612,2539.2,2539.1,3.0]
[1726895058827,2.2981,2539.7,2539.1,3.0]
[1726895059162,0.07743612,2539.2,2539.1,3.0]
[1726895059363,2.2981,2539.7,2539.1,3.0]
[1726895059867,0.07743612,2539.6,2539.1,3.0]
[1726895060426,0.07743612,2539.6,2538.9,3.0]
[1726895060967,0.07743612,2539.6,2539.0,0.04524567]
[1726895061531,0.07743612,2539.6,2538.9,3.0]
[1726895062370,0.07743612,2539.6,2539.0,0.0452457]
[1726895064352,0.07743612,2539.6,2539.2,3.0]
[1726895065971,0.07743612,2539.6,2539.3,0.04524486]
[1726895066478,2.2981,2539.9,2539.5,3.0]
[1726895066642,2.2981,2539.9,2539.5,3.04519932]
[1726895066852,2.2981,2540.2,2539.7,3.0]
[1726895067049,3.02772592,2540.2,2539.7,3.0451879]
[1726895067252,2.2981,2540.2,2539.7,3.0451879]
[1726895068952,2.2981,2540.2,2539.7,3.0]
[1726895075606,0.07756676,2540.1,2539.7,3.0]
[1726895075892,2.2981,2540.2,2539.7,3.0]
[1726895076302,0.07756676,2540.1,2539.7,3.0]
[1726895076599,2.2981,2540.2,2539.7,3.0]
[1726895076981,0.07778573,2540.1,2539.7,3.0]
[1726895077170,0.07778573,2540.1,2539.7,3.0451795]
[1726895077371,2.2981,2540.2,2539.7,3.0451795]
[1726895077789,0.07778573,2540.1,2539.7,3.0451795]
[1726895077992,0.07778573,2540.1,2539.7,4.7865189]
[1726895078194,2.2981,2540.2,2539.7,4.7865189]
[1726895078597,0.07778573,2540.1,2539.7,4.7865189]
[1726895078907,2.2981,2540.2,2539.7,4.7865189]
[1726895079111,0.07778573,2540.1,2539.7,4.7865189]
[1726895079408,2.2981,2540.2,2539.7,4.7413394]
[1726895079585,0.23758857,2540.1,2539.4,0.19788737]
[1726895079769,0.3153743,2540.1,2539.3,2.3128]
[1726895080106,0.3153743,2540.1,2539.4,3.0]
[1726895080309,2.4199,2540.0,2539.3,2.3128]
[1726895080627,0.28337032,2539.9,2539.2,1.7413394]
[1726895081212,0.07778573,2539.8,2539.2,1.7413394]
[1726895081593,0.28337032,2539.9,2539.2,1.7413394]
[1726895081976,0.07778573,2539.8,2539.2,3.0]
[1726895084681,0.07778573,2539.8,2539.3,3.0]
[1726895086243,2.4199,2539.7,2539.3,3.0]
[1726895086541,2.4199,2539.7,2539.1,3.0]
[1726895086542,2.69800561,2539.7,2539.1,3.0]
[1726895086745,0.07778573,2539.6,2539.1,3.0]
[1726895088042,0.07778573,2539.6,2539.2,3.77422437]
[1726895088243,0.07778573,2539.6,2539.3,3.0]
[1726895089206,0.07778573,2539.6,2539.5,3.0]
[1726895089551,2.4199,2539.9,2539.5,3.0]
[1726895089847,0.0776705,2539.8,2539.5,3.0]
[1726895091138,2.4199,2539.9,2539.5,3.0]
[1726895091322,2.4199,2539.9,2539.8,3.93731]
[1726895091535,2.4199,2539.9,2539.8,6.93731]
[1726895091700,2.4975705,2539.9,2539.8,6.93731]
[1726895094228,0.0776705,2539.9,2539.8,6.93731]
[1726895094642,2.4111,2540.1,2539.7,3.0]
[1726895095925,2.4111,2540.1,2539.4,0.19494492]
[1726895096223,0.24111,2540.0,2539.5,3.0]
[1726895097647,2.4111,2540.1,2539.5,3.0]
[1726895102082,2.4111,2540.1,2539.8,3.0]
[1726895102876,0.07777036,2540.0,2539.8,3.0]
[1726895103671,0.07777036,2540.0,2539.5,3.0]
[1726895104065,0.07777036,2540.0,2539.4,1.74171192]
[1726895104282,2.40882937,2539.9,2539.1,2.46970483]
[1726895104579,2.40882937,2539.9,2539.0,1.74171192]
[1726895104753,2.3104,2539.7,2539.0,1.74171192]
[1726895105167,2.3104,2539.7,2539.2,1.74171192]
[1726895105343,0.07777036,2539.6,2539.2,1.74171192]
[1726895105961,0.07777036,2539.6,2539.0,4.32469657]
[1726895106639,0.07777036,2539.6,2539.1,3.0]
[1726895107078,0.3165874,2539.6,2539.1,3.0]
[1726895107262,2.40884759,2539.5,2538.9,3.0]
[1726895107573,0.07788178,2539.4,2538.8,3.0]
[1726895107774,2.3104,2539.3,2538.8,3.19217523]
[1726895108144,0.07782799,2539.2,2538.8,3.0]
[1726895108353,2.3104,2539.3,2538.8,3.0]
[1726895108884,0.07782799,2539.2,2538.8,3.0]
[1726895109067,0.07782799,2539.2,2539.0,3.0]
[1726895109275,2.3104,2539.3,2539.0,3.0]
[1726895109469,0.07782799,2539.1,2539.0,3.0]
[1726895109644,2.3104,2539.3,2539.0,3.0]
[1726895109847,0.07782799,2539.1,2539.0,3.0]
[1726895110156,2.3104,2539.3,2539.0,3.0]
[1726895110357,0.07782799,2539.1,2539.0,3.0]
[1726895110657,2.3104,2539.3,2539.0,3.33605633]
[1726895110970,2.3104,2539.3,2539.0,3.0]
[1726895111148,0.07782799,2539.2,2539.1,0.33606241]
[1726895111699,2.3104,2539.3,2539.1,0.33606241]
[1726895111898,0.30886799,2539.2,2539.1,0.33606241]
[1726895112102,0.30886799,2539.2,2538.8,3.0]
[1726895112303,0.07782799,2539.2,2538.8,3.0]
[1726895112540,2.3104,2539.3,2538.8,3.0]
[1726895112799,0.07751679,2539.1,2538.8,3.0]
[1726895113006,2.3104,2539.3,2538.8,3.0]
[1726895113469,0.07749374,2539.2,2538.8,3.0]
[1726895113666,2.3104,2539.3,2538.8,3.0]
[1726895113882,0.07749374,2539.2,2538.8,3.0]
[1726895114379,2.54144,2539.3,2538.8,3.0]
[1726895114904,0.07749374,2539.2,2538.8,3.0]
[1726895115073,2.54144,2539.3,2538.8,3.0]
[1726895115281,0.07749374,2539.2,2538.8,3.0]
[1726895115757,2.54144,2539.3,2538.8,3.0]
[1726895115880,0.07749374,2539.1,2538.8,3.0]
[1726895116210,2.3104,2539.3,2538.8,3.0]
[1726895116375,0.07749374,2539.0,2538.8,3.0]
[1726895116583,2.3104,2539.3,2538.8,3.0]
[1726895116897,0.07749374,2538.9,2538.7,3.0]
[1726895117066,2.3104,2539.3,2538.8,6.77469657]
[1726895117264,2.3104,2539.3,2538.7,3.0]
[1726895117265,0.07745147,2539.2,2539.1,3.0]
[1726895117608,2.3104,2539.3,2539.1,3.0]
[1726895117806,0.07745147,2539.2,2539.1,3.0]
[1726895118163,2.3104,2539.3,2539.1,3.0]
[1726895118580,0.07745147,2539.2,2539.1,3.0]
[1726895118784,2.3104,2539.3,2539.1,3.0]
[1726895118989,0.07745147,2539.2,2539.1,3.0]
[1726895119265,2.3104,2539.3,2539.1,3.0]
[1726895119496,0.07745147,2539.2,2539.1,3.0]
[1726895120434,2.3104,2539.3,2539.1,3.0]
[1726895120610,0.07745147,2539.2,2539.1,3.0]
[1726895121028,2.3104,2539.3,2539.1,3.0]
[1726895121339,0.07745147,2539.2,2539.1,3.0]
[1726895121623,2.3104,2539.3,2539.1,3.0]
[1726895121800,0.07745147,2539.2,2538.9,3.0]
[1726895122004,2.3104,2539.3,2538.9,3.0]
[1726895122203,0.07745147,2539.1,2538.9,3.0]
[1726895122397,2.3104,2539.3,2538.9,3.0]
[1726895122793,0.0774092,2539.2,2538.9,3.0]
[1726895123113,0.0774092,2539.1,2538.9,3.0]
[1726895123432,0.0774092,2539.1,2538.7,2.4738128]
[1726895123433,2.3104,2539.3,2538.7,3.0]
[1726895123734,2.54144,2539.3,2538.7,3.0]
[1726895123902,0.0774092,2539.2,2538.7,3.0]
[1726895125528,0.0774092,2539.2,2538.6,3.77469657]
[1726895125763,0.0774092,2539.2,2538.5,0.192891]
[1726895125764,2.2962,2539.1,2538.5,0.192891]
[1726895126226,2.2962,2539.1,2538.4,3.77469657]
[1726895126836,2.2962,2539.1,2538.5,3.0]
[1726895127935,2.2962,2539.1,2538.7,1.7428094]
[1726895129307,0.252724,2539.1,2538.4,3.0]
[1726895129524,4.99815916,2539.7,2538.3,1.7428094]
[1726895129525,2.3946777,2539.0,2538.3,1.7428094]
[1726895129830,2.4720869,2539.0,2538.3,1.7428094]
[1726895130140,2.4720869,2539.0,2538.2,0.0374035]
[1726895132085,2.54592261,2539.0,2538.2,0.0374035]
[1726895132254,2.55079226,2538.9,2538.2,0.0374035]
[1726895132449,2.55079226,2538.9,2538.3,3.0]
[1726895132450,2.2962,2538.9,2538.3,3.0]
[1726895132651,0.15110266,2538.8,2538.3,6.19792337]
[1726895133054,0.15110266,2538.8,2538.4,3.0]
[1726895135590,0.15110266,2538.8,2538.6,3.0]
[1726895136782,0.15110266,2538.8,2538.7,3.77762337]
[1726895136982,0.15110266,2538.8,2538.7,6.77762337]
[1726895138393,0.15110266,2538.8,2538.5,3.77762337]
[1726895138600,0.15110266,2538.8,2538.6,3.0]
[1726895141053,0.15110266,2538.8,2538.7,6.77762337]
[1726895141477,2.3735,2539.1,2538.8,3.0]
[1726895142273,2.61085,2539.1,2538.5,0.04528923]
[1726895142463,2.61085,2539.1,2538.2,0.0374035]
[1726895142464,2.3735,2538.9,2538.2,0.0374035]
[1726895142798,2.3735,2538.7,2538.2,0.0374035]
[1726895143002,2.3735,2538.5,2538.2,0.0374035]
[1726895143310,2.3735,2538.3,2538.2,0.0374035]
[1726895143510,2.4720124,2538.3,2538.2,0.0374035]
[1726895146332,2.3735,2538.3,2538.2,0.0374035]
[1726895146481,2.47201961,2538.3,2538.2,0.0374035]
[1726895146684,2.3735,2538.3,2538.2,0.0374035]
[1726895150281,2.52360654,2538.3,2538.2,0.0374035]
[1726895151012,2.77596719,2538.3,2538.2,0.0374035]
[1726895162860,2.52360654,2538.3,2538.2,0.0374035]
[1726895163061,0.15010654,2538.3,2538.2,0.0374035]
[1726895163472,2.2972,2538.5,2538.2,0.0374035]
[1726895163963,0.1499488,2538.4,2538.2,0.0374035]
[1726895164948,0.1499488,2538.4,2538.2,2.3055035]
[1726895165253,4.99815916,2538.9,2538.2,2.3055035]
[1726895165254,4.99815916,2538.9,2538.5,2.2681]
[1726895165607,4.99815916,2539.4,2538.8,3.0]
[1726895165904,5.72769508,2539.4,2539.0,3.0]
[1726895170952,5.8261544,2539.4,2538.8,3.0]
[1726895171154,2.2972,2539.3,2538.2,0.0374035]
[1726895171401,2.70820567,2539.2,2538.2,0.0374035]
[1726895171959,2.60971952,2539.2,2538.5,3.77762337]
[1726895172489,0.09848283,2539.1,2538.4,3.0]
[1726895172687,2.60971952,2539.2,2538.4,3.0]
[1726895173308,0.09848103,2539.1,2538.4,3.0]
[1726895173500,0.36930109,2539.1,2538.4,3.0]
[1726895175118,2.4603,2539.0,2538.2,0.0374035]
[1726895175335,0.09849033,2538.9,2538.2,0.0374035]
[1726895176510,2.4603,2538.8,2538.2,0.0374035]
[1726895176717,0.0984966,2538.7,2538.2,0.0374035]
[1726895177006,2.4603,2538.6,2538.2,0.0374035]
[1726895177182,0.09850345,2538.5,2538.2,0.0374035]
[1726895178288,2.2756,2538.9,2538.2,0.0374035]
[1726895178499,2.2756,2538.7,2538.2,0.0374035]
[1726895178697,2.2756,2538.5,2538.2,0.0374035]
[1726895178924,0.33592015,2538.4,2538.2,0.0374035]
[1726895180399,0.15024887,2538.3,2538.2,0.0374035]
[1726895181332,2.42584887,2538.3,2538.2,0.0374035]
[1726895186593,2.52437745,2538.3,2538.2,0.0374035]
[1726895188913,10.44700082,2538.3,2538.2,0.0374035]
[1726895189115,10.44700082,2538.3,2537.4,0.0374035]
[1726895189116,5.8256,2538.0,2537.4,0.0374035]
[1726895189328,2.2756,2537.6,2537.4,0.0374035]
[1726895189626,0.09855369,2537.5,2537.4,0.0374035]
[1726895189832,0.24851788,2537.5,2537.4,0.0374035]
[1726895190018,0.50092967,2537.5,2537.4,0.0374035]
[1726895192055,0.50092266,2537.5,2537.4,0.0374035]
[1726895193167,0.14996419,2537.5,2537.4,0.0374035]
[1726895193474,4.99815916,2538.1,2537.4,0.0374035]
[1726895193475,2.4773,2538.0,2537.4,0.0374035]
[1726895193642,0.14947916,2537.5,2537.4,0.0374035]
[1726895193970,2.4773,2538.0,2537.4,0.0374035]
[1726895194118,0.14947916,2537.5,2537.4,0.0374035]
[1726895194316,3.33322115,2538.0,2537.4,0.0374035]
[1726895194773,0.14954846,2537.9,2537.4,0.0374035]
[1726895195538,0.098523,2537.8,2537.4,0.0374035]
[1726895195740,0.14960621,2537.7,2537.4,0.0374035]
[1726895196043,0.098523,2537.8,2537.4,0.0374035]
[1726895196690,0.14960621,2537.7,2537.4,0.0374035]
[1726895197060,0.09852676,2537.9,2537.4,0.0374035]
[1726895197263,0.14960621,2537.6,2537.4,0.0374035]
[1726895197585,0.14960621,2537.5,2537.4,0.0374035]
[1726895197785,0.09852676,2537.9,2537.4,0.0374035]
[1726895198091,0.14960621,2537.5,2537.4,0.0374035]
[1726895198292,0.93166517,2537.9,2537.4,0.0374035]
[1726895198789,0.14960621,2537.8,2537.4,0.0374035]
[1726895201388,0.09852666,2537.7,2537.4,0.0374035]
[1726895201772,0.14961006,2537.6,2537.4,0.0374035]
[1726895203167,0.14961006,2537.6,2537.5,2.3303]
[1726895203369,0.09852442,2537.9,2537.5,2.3303]
[1726895203569,0.14964471,2537.8,2537.5,2.3303]
[1726895204195,0.09852034,2538.1,2537.5,2.3303]
[1726895204360,0.14964471,2537.7,2537.5,2.3303]
[1726895204554,0.09852034,2538.1,2537.5,2.3303]
[1726895204861,0.14964471,2538.0,2537.5,2.3303]
[1726895206742,0.14964471,2538.0,2537.6,3.77762337]
[1726895206922,0.14964471,2538.0,2537.8,2.3303]
[1726895207230,0.1497525,2537.9,2537.8,2.3303]
[1726895207393,4.99815916,2538.4,2537.8,2.3303]
[1726895207592,0.1497525,2537.9,2537.8,2.3303]
[1726895207835,4.99815916,2538.4,2537.9,3.0]
[1726895208048,4.99815916,2538.4,2538.0,3.77762337]
[1726895208333,2.386,2538.7,2538.0,3.77762337]
[1726895208525,2.386,2538.7,2538.1,2.3303]
[1726895208833,0.2386,2538.6,2538.1,2.3303]
[1726895209540,4.99815916,2538.9,2538.4,3.77762337]
[1726895210246,0.09848845,2538.8,2538.3,3.0]
[1726895210446,0.24835255,2538.8,2538.3,3.0]
[1726895211402,0.1498641,2538.8,2538.3,3.0]
[1726895211601,0.1498641,2538.8,2538.4,3.77762337]
[1726895212348,0.1498641,2538.8,2538.5,2.3303]
[1726895212799,0.09848404,2539.0,2538.5,2.3303]
[1726895213000,0.1500257,2538.7,2538.5,2.3303]
[1726895213202,0.27970036,2539.0,2538.5,2.3303]
[1726895213436,0.1500257,2538.6,2538.5,2.3303]
[1726895213671,0.27970036,2539.0,2538.5,2.3303]
[1726895213865,0.1500257,2538.6,2538.5,2.3303]
[1726895214065,0.27970036,2539.0,2538.5,2.3303]
[1726895214272,0.1500257,2538.6,2538.5,2.3303]
[1726895214436,0.27970036,2539.0,2538.5,2.3303]
[1726895214637,0.1500257,2538.6,2538.5,2.3303]
[1726895214891,0.0984841,2538.9,2538.5,2.3303]
[1726895215175,0.1500257,2538.6,2538.5,2.3303]
[1726895215384,0.0984841,2538.9,2538.5,2.3303]
[1726895215533,0.1500257,2538.6,2538.5,2.3303]
[1726895215934,0.0984841,2538.9,2538.5,2.3303]
[1726895216142,0.1500257,2538.6,2538.5,2.3303]
[1726895216653,0.0984841,2538.9,2538.5,2.3303]
[1726895216855,0.1500257,2538.6,2538.5,2.3303]
[1726895217083,0.0984841,2538.9,2538.5,2.3303]
[1726895217412,0.1500257,2538.6,2538.5,2.3303]
[1726895217544,0.0984841,2538.9,2538.5,2.3303]
[1726895217745,0.1500257,2538.8,2538.5,2.3303]
[1726895218155,0.09848397,2538.7,2538.3,3.0]
[1726895218444,0.15047592,2538.6,2538.2,2.4561]
[1726895218643,0.09848397,2538.7,2538.2,2.4561]
[1726895218875,0.15047592,2538.5,2538.2,2.4561]
[1726895219080,0.09848397,2538.7,2538.2,2.4561]
[1726895219295,0.09848397,2538.7,2537.4,8.19165265]
[1726895219296,0.15047592,2538.4,2537.7,2.4561]
[1726895219498,2.41271075,2538.3,2537.7,2.4561]
[1726895219644,2.56315205,2538.3,2537.7,2.4561]
[1726895223244,2.4646413,2538.3,2537.7,2.4561]
[1726895223567,2.4646413,2538.3,2537.7,6.23372337]
[1726895224759,0.09851036,2538.2,2537.7,6.23372337]
[1726895224985,2.4646413,2538.3,2537.7,6.23372337]
[1726895225287,2.56066413,2538.3,2537.7,6.23372337]
[1726895225494,0.15028355,2538.2,2537.7,6.23372337]
[1726895225647,0.24879386,2538.2,2537.7,6.23372337]
[1726895226178,0.24879386,2538.2,2537.7,2.4561]
[1726895228055,0.15028355,2538.2,2537.7,6.23372337]
[1726895228268,0.09850908,2538.1,2537.7,2.4561]
[1726895228581,2.3142,2538.0,2537.4,2.4935035]
[1726895228794,0.09851838,2537.9,2537.4,2.4935035]
[1726895229760,2.3142,2538.0,2537.4,6.27112687]
[1726895229947,2.3142,2538.0,2537.5,3.0]
[1726895230156,2.54562,2538.0,2537.5,3.0]
[1726895230483,0.15005655,2537.9,2537.5,3.0]
[1726895234475,0.24857408,2537.9,2537.5,3.0]
[1726895234682,0.24857408,2537.9,2537.4,0.0374035]
[1726895236077,0.24857408,2537.9,2537.4,3.81502687]
[1726895236313,0.15005655,2537.9,2537.6,2.2852]
[1726895236608,2.3750156,2538.2,2537.6,2.2852]
[1726895236769,3.00396592,2538.2,2537.6,2.2852]
[1726895236965,3.00396592,2538.2,2537.4,3.81502687]
[1726895236966,0.0985104,2538.1,2537.4,0.0374035]
[1726895237199,0.0985104,2538.1,2537.4,3.0374035]
[1726895237512,0.15005655,2538.0,2537.4,3.0374035]
[1726895240504,3.00396592,2538.2,2537.4,3.0374035]
[1726895240677,0.15005655,2537.9,2537.4,0.0374035]
[1726895240876,2.3243,2538.0,2537.4,0.0374035]
[1726895240877,0.09852501,2537.8,2537.4,0.0374035]
[1726895241101,0.24858156,2537.8,2537.4,0.0374035]
[1726895244023,2.3243,2537.7,2537.4,0.0374035]
[1726895244190,0.35582545,2537.6,2537.4,0.0374035]
[1726895244387,0.1499642,2537.5,2537.4,0.0374035]
[1726895252539,2.5768642,2537.5,2537.4,0.0374035]
[1726895256145,6.35448757,2537.5,2536.6,0.0374035]
[1726895256353,2.4269,2537.1,2536.6,0.0374035]
[1726895256499,2.52546571,2537.0,2536.6,0.0374035]
[1726895256699,0.14946763,2537.0,2536.6,3.81502687]
[1726895256928,2.4269,2537.2,2536.7,2.3447]
[1726895257246,0.14946763,2536.9,2536.7,2.3447]
[1726895257539,0.14946763,2537.1,2536.6,0.0374035]
[1726895257698,0.3660396,2537.1,2536.6,0.0374035]
[1726895257899,0.14946763,2537.0,2536.6,0.0374035]
[1726895263458,0.09855475,2536.9,2536.6,0.0374035]
[1726895263963,0.14946763,2536.8,2536.6,0.0374035]
[1726895264283,2.5406308,2536.8,2536.6,0.0374035]
[1726895264461,0.25406308,2536.7,2536.6,0.0374035]
[1726895264971,0.40353071,2536.7,2536.6,0.0374035]
[1726895267411,0.14946763,2536.7,2536.6,0.0374035]
[1726895268116,2.2926,2537.0,2536.6,0.0374035]
[1726895268315,0.14946763,2536.7,2536.6,0.0374035]
[1726895268615,2.2926,2537.0,2536.6,0.0374035]
[1726895268813,0.14946763,2536.7,2536.6,0.0374035]
[1726895268983,2.2926,2537.0,2536.6,0.0374035]
[1726895269184,0.14946763,2536.7,2536.6,0.0374035]
[1726895269671,0.25600914,2536.9,2536.6,0.0374035]
[1726895269875,0.14946763,2536.7,2536.6,0.0374035]
[1726895270213,0.25600914,2536.9,2536.6,0.0374035]
[1726895270414,0.14928659,2536.7,2536.6,0.0374035]
[1726895270601,0.25600914,2536.9,2536.6,0.0374035]
[1726895271090,0.14928659,2536.8,2536.6,0.0374035]
[1726895273718,0.14928659,2536.7,2536.6,0.0374035]
[1726895273943,2.52186,2537.0,2536.6,0.0374035]
[1726895274145,0.14928659,2536.9,2536.6,0.0374035]
[1726895275163,0.24784434,2536.9,2536.6,0.0374035]
[1726895277184,0.14928659,2536.9,2536.6,0.0374035]
[1726895277698,0.14928659,2536.9,2536.7,2.3314]
[1726895277868,7.40275916,2537.5,2536.8,1.74629817]
[1726895278166,7.40275916,2537.5,2536.8,4.74629817]
[1726895278167,0.14910559,2537.4,2536.8,4.74629817]
[1726895278378,0.24764614,2537.4,2536.8,4.74629817]
[1726895280032,0.24764614,2537.4,2536.7,2.3314]
[1726895280228,0.24764614,2537.4,2536.7,5.3314]
[1726895280833,0.14910559,2537.4,2536.9,2.3314]
[1726895281032,0.14910559,2537.4,2536.6,0.0374035]
[1726895281033,0.14910559,2537.4,2537.3,5.3314]
[1726895281637,4.99815916,2537.8,2537.3,5.3314]
[1726895281880,0.14910559,2537.7,2537.3,5.3314]
[1726895282036,4.99815916,2537.8,2537.3,5.3314]
[1726895282236,0.14910559,2537.7,2537.3,5.3314]
[1726895282538,4.99815916,2537.8,2537.3,5.3314]
[1726895282739,0.14935205,2537.7,2537.3,5.3314]
[1726895283151,4.99815916,2537.8,2537.3,5.3314]
[1726895283357,0.14935205,2537.7,2537.3,5.3314]
[1726895283743,4.99815916,2537.8,2537.3,5.3314]
[1726895283965,0.14935205,2537.7,2537.6,3.78216967]
[1726895284164,0.14935205,2537.7,2537.6,9.25896471]
[1726895284374,4.99815916,2538.2,2537.6,9.21356967]
[1726895284579,4.99815916,2538.2,2537.7,3.0]
[1726895284872,0.14935205,2538.1,2537.7,3.0]
[1726895285277,0.14935205,2538.0,2537.7,3.0]
[1726895285480,0.14935205,2538.0,2537.6,6.21356967]
[1726895285481,2.39450317,2538.5,2537.6,2.4314]
[1726895285638,1.26683525,2538.4,2537.6,2.4314]
[1726895285840,0.0985082,2538.3,2537.6,2.4314]
[1726895286369,0.14935205,2538.2,2537.6,2.4314]
[1726895288451,2.39450814,2538.1,2537.3,2.4314]